[Event "FINAL CAMPEONATO ABSOLUTO DE AJEDREZ CHILE 2018"]
[Site "CENTRO CULTURAL LO PRADO, Chile"]
[Date "2018.02.26"]
[Round "4.1"]
[White "LLORENS SEPULVEDA, Marcelo"]
[Black "FUENTES PARRA, Victor Ignacio"]
[Result "1/2-1/2"]
[TimeControl "90 minutos mas 30 segundos de incremento por movida"]
[WhiteTitle "FM"]
[WhiteElo "2266"]
[BlackElo "2148"]

1. e4 {[%clk 01:23:35]} {[%emt 00:07:24]} e6 {[%clk 01:30:53]} {[%emt
00:00:08]} 2. d4 {[%clk 01:23:53]} {[%emt 00:00:11]} d5 {[%clk 01:31:18]}
{[%emt 00:00:06]} 3. e5 {[%clk 01:24:17]} {[%emt 00:00:06]} c5 {[%clk
01:31:44]} {[%emt 00:00:05]} 4. c3 {[%clk 01:24:43]} {[%emt 00:00:04]} Qb6
{[%clk 01:32:11]} {[%emt 00:00:03]} 5. Nf3 {[%clk 01:25:02]} {[%emt 00:00:10]}
Nc6 {[%clk 01:32:37]} {[%emt 00:00:05]} 6. a3 {[%clk 01:25:25]} {[%emt
00:00:07]} Nh6 {[%clk 01:32:21]} {[%emt 00:00:45]} 7. b4 {[%clk 01:22:11]}
{[%emt 00:03:44]} cxd4 {[%clk 01:32:46]} {[%emt 00:00:06]} 8. cxd4 {[%clk
01:22:37]} {[%emt 00:00:04]} Nf5 {[%clk 01:33:11]} {[%emt 00:00:04]} 9. Be3
{[%clk 01:22:24]} {[%emt 00:00:44]} Bd7 {[%clk 01:30:17]} {[%emt 00:03:24]} 10.
Bd3 {[%clk 01:22:06]} {[%emt 00:00:47]} Nxe3 {[%clk 01:28:35]} {[%emt
00:02:13]} 11. fxe3 {[%clk 01:22:29]} {[%emt 00:00:06]} Rc8 {[%clk 01:28:42]}
{[%emt 00:00:23]} 12. O-O {[%clk 01:22:28]} {[%emt 00:00:30]} Be7 {[%clk
01:29:08]} {[%emt 00:00:05]} 13. Nbd2 {[%clk 01:21:28]} {[%emt 00:01:30]} Nb8
{[%clk 01:29:33]} {[%emt 00:00:05]} 14. Qe2 {[%clk 01:20:27]} {[%emt 00:01:31]}
Ba4 {[%clk 01:25:34]} {[%emt 00:04:29]} 15. e4 {[%clk 01:05:09]} {[%emt
00:15:48]} O-O {[%clk 01:11:23]} {[%emt 00:14:41]} 16. Kh1 {[%clk 01:00:24]}
{[%emt 00:05:14]} Rc3 {[%clk 01:05:17]} {[%emt 00:06:37]} 17. exd5 {[%clk
00:46:21]} {[%emt 00:14:33]} exd5 {[%clk 01:05:26]} {[%emt 00:00:20]} 18. Rfe1
{[%clk 00:39:24]} {[%emt 00:07:27]} Rfc8 {[%clk 00:41:35]} {[%emt 00:24:22]} 19.
Nf1 {[%clk 00:34:06]} {[%emt 00:05:47]} Bc2 {[%clk 00:24:34]} {[%emt 00:17:31]}
20. Bxc2 {[%clk 00:34:12]} {[%emt 00:00:23]} Rxc2 {[%clk 00:24:59]} {[%emt
00:00:05]} 21. Qd1 {[%clk 00:34:18]} {[%emt 00:00:24]} R2c3 {[%clk 00:24:33]}
{[%emt 00:00:57]} 22. Ne3 {[%clk 00:34:04]} {[%emt 00:00:43]} Qe6 {[%clk
00:22:53]} {[%emt 00:02:11]} 23. Qa4 {[%clk 00:32:22]} {[%emt 00:02:13]} a6
{[%clk 00:21:52]} {[%emt 00:01:31]} 24. Qd1 {[%clk 00:27:29]} {[%emt 00:05:22]}
Nd7 {[%clk 00:16:21]} {[%emt 00:06:01]} 25. Qd2 {[%clk 00:10:48]} {[%emt
00:17:12]} Nb6 {[%clk 00:16:46]} {[%emt 00:00:05]} 26. Nf1 {[%clk 00:10:27]}
{[%emt 00:00:51]} Qg6 {[%clk 00:10:21]} {[%emt 00:06:56]} 27. Ng3 {[%clk
00:09:03]} {[%emt 00:01:53]} h5 {[%clk 00:09:27]} {[%emt 00:01:24]} 28. e6
{[%clk 00:08:32]} {[%emt 00:01:00]} fxe6 {[%clk 00:07:22]} {[%emt 00:02:36]} 29.
Ne5 {[%clk 00:08:48]} {[%emt 00:00:14]} Qg5 {[%clk 00:06:16]} {[%emt 00:01:36]}
30. Qxg5 {[%clk 00:04:33]} {[%emt 00:04:45]} Bxg5 {[%clk 00:06:44]} {[%emt
00:00:01]} 31. Nxh5 {[%clk 00:04:55]} {[%emt 00:00:08]} Rc1 {[%clk 00:06:36]}
{[%emt 00:00:38]} 32. Nd3 {[%clk 00:04:59]} {[%emt 00:00:26]} Rxa1 {[%clk
00:02:25]} {[%emt 00:04:41]} 33. Rxa1 {[%clk 00:05:24]} {[%emt 00:00:05]} Na4
{[%clk 00:00:39]} {[%emt 00:02:16]} 34. Nhf4 {[%clk 00:03:30]} {[%emt
00:02:24]} Bxf4 {[%clk 00:00:32]} {[%emt 00:00:38]} 35. Nxf4 {[%clk 00:03:55]}
{[%emt 00:00:05]} Kf7 {[%clk 00:00:52]} {[%emt 00:00:10]} 36. Rf1 {[%clk
00:04:13]} {[%emt 00:00:11]} Ke7 {[%clk 00:00:32]} {[%emt 00:00:51]} 37. Re1
{[%clk 00:04:34]} {[%emt 00:00:10]} Nc3 {[%clk 00:00:31]} {[%emt 00:00:31]} 38.
Nxe6 {[%clk 00:04:36]} {[%emt 00:00:28]} Kf6 {[%clk 00:00:34]} {[%emt
00:00:27]} 39. Nc5 {[%clk 00:04:51]} {[%emt 00:00:14]} Rc7 {[%clk 00:00:32]}
{[%emt 00:00:33]} 40. Rc1 {[%clk 00:03:50]} {[%emt 00:01:30]} Re7 {[%clk
00:00:34]} {[%emt 00:00:29]} 41. h4 {[%clk 00:03:23]} {[%emt 00:00:57]} Nb5
{[%clk 00:00:47]} {[%emt 00:00:17]} 42. a4 {[%clk 00:03:10]} {[%emt 00:00:43]}
Nxd4 {[%clk 00:00:57]} {[%emt 00:00:20]} 43. Rd1 {[%clk 00:03:32]} {[%emt
00:00:08]} Nc2 {[%clk 00:00:36]} {[%emt 00:00:50]} 44. Rxd5 {[%clk 00:03:56]}
{[%emt 00:00:06]} Nxb4 {[%clk 00:00:40]} {[%emt 00:00:27]} 45. Rd6+ {[%clk
00:04:19]} {[%emt 00:00:08]} Kf5 {[%clk 00:00:38]} {[%emt 00:00:31]} 46. Rb6
{[%clk 00:03:25]} {[%emt 00:01:24]} Nd5 {[%clk 00:00:50]} {[%emt 00:00:18]} 47.
Rb3 {[%clk 00:02:52]} {[%emt 00:01:03]} Kg4 {[%clk 00:00:34]} {[%emt 00:00:46]}
48. Nxb7 {[%clk 00:02:34]} {[%emt 00:00:48]} Kxh4 {[%clk 00:00:37]} {[%emt
00:00:27]} 49. Nc5 {[%clk 00:02:49]} {[%emt 00:00:14]} a5 {[%clk 00:00:32]}
{[%emt 00:00:34]} 50. Kh2 {[%clk 00:02:13]} {[%emt 00:01:06]} Ne3 {[%clk
00:00:33]} {[%emt 00:00:29]} 51. Kg1 {[%clk 00:00:54]} {[%emt 00:01:49]} Ng4
{[%clk 00:00:34]} {[%emt 00:00:29]} 52. Kf1 {[%clk 00:00:36]} {[%emt 00:00:48]}
Rf7+ {[%clk 00:00:35]} {[%emt 00:00:29]} 53. Ke1 {[%clk 00:00:42]} {[%emt
00:00:25]} Re7+ {[%clk 00:00:37]} {[%emt 00:00:28]} 54. Kd2 {[%clk 00:00:52]}
{[%emt 00:00:20]} Nf2 {[%clk 00:00:34]} {[%emt 00:00:33]} 55. Re3 {[%clk
00:00:34]} {[%emt 00:00:48]} 1/2-1/2

[Event "FINAL CAMPEONATO ABSOLUTO DE AJEDREZ CHILE 2018"]
[Site "CENTRO CULTURAL LO PRADO, Chile"]
[Date "2018.02.26"]
[Round "4.2"]
[White "AGUIRRE CONTRERAS, Cristian Ro"]
[Black "ABARCA GONZALEZ, Nicolas"]
[Result "0-1"]
[TimeControl "90 minutos mas 30 segundos de incremento por movida"]
[WhiteTitle "FM"]
[WhiteElo "2272"]
[BlackElo "2388"]

1. e4 {[%clk 01:30:57]} {[%emt 00:00:03]} c5 {[%clk 01:30:56]} {[%emt
00:00:04]} 2. c3 {[%clk 01:31:00]} {[%emt 00:00:27]} d5 {[%clk 01:31:22]}
{[%emt 00:00:04]} 3. exd5 {[%clk 01:31:18]} {[%emt 00:00:12]} Qxd5 {[%clk
01:31:43]} {[%emt 00:00:08]} 4. d4 {[%clk 01:31:35]} {[%emt 00:00:14]} Nf6
{[%clk 01:32:04]} {[%emt 00:00:09]} 5. Nf3 {[%clk 01:31:35]} {[%emt 00:00:30]}
e6 {[%clk 01:32:22]} {[%emt 00:00:12]} 6. Na3 {[%clk 01:24:09]} {[%emt
00:07:56]} Nc6 {[%clk 01:28:57]} {[%emt 00:03:55]} 7. Be2 {[%clk 01:22:17]}
{[%emt 00:02:22]} Be7 {[%clk 01:27:11]} {[%emt 00:02:16]} 8. O-O {[%clk
01:21:56]} {[%emt 00:00:50]} O-O {[%clk 01:27:21]} {[%emt 00:00:20]} 9. Nb5
{[%clk 01:20:34]} {[%emt 00:01:52]} Qd8 {[%clk 01:23:05]} {[%emt 00:04:46]} 10.
dxc5 {[%clk 01:15:30]} {[%emt 00:05:34]} Bxc5 {[%clk 01:21:31]} {[%emt
00:02:04]} 11. b4 {[%clk 01:15:31]} {[%emt 00:00:29]} Bb6 {[%clk 01:21:16]}
{[%emt 00:00:44]} 12. Qc2 {[%clk 01:04:48]} {[%emt 00:11:13]} a6 {[%clk
01:20:03]} {[%emt 00:01:44]} 13. Rd1 {[%clk 01:04:38]} {[%emt 00:00:40]} Qe7
{[%clk 01:20:09]} {[%emt 00:00:24]} 14. Nbd4 {[%clk 01:01:32]} {[%emt
00:03:35]} Nxd4 {[%clk 01:06:39]} {[%emt 00:14:00]} 15. Nxd4 {[%clk 01:01:46]}
{[%emt 00:00:16]} e5 {[%clk 01:06:38]} {[%emt 00:00:31]} 16. Nf5 {[%clk
00:57:34]} {[%emt 00:04:41]} Bxf5 {[%clk 01:02:11]} {[%emt 00:04:57]} 17. Qxf5
{[%clk 00:58:01]} {[%emt 00:00:03]} Rac8 {[%clk 01:02:37]} {[%emt 00:00:04]} 18.
Bg5 {[%clk 00:49:37]} {[%emt 00:08:53]} Rxc3 {[%clk 01:01:42]} {[%emt
00:01:25]} 19. Bd3 {[%clk 00:47:39]} {[%emt 00:02:28]} Rd8 {[%clk 01:01:58]}
{[%emt 00:00:14]} 20. Bxf6 {[%clk 00:35:19]} {[%emt 00:12:50]} Qxf6 {[%clk
01:02:13]} {[%emt 00:00:15]} 21. Qxf6 {[%clk 00:34:48]} {[%emt 00:01:01]} gxf6
{[%clk 01:02:30]} {[%emt 00:00:13]} 22. Be4 {[%clk 00:35:05]} {[%emt 00:00:14]}
Bd4 {[%clk 00:56:42]} {[%emt 00:06:19]} 23. Rac1 {[%clk 00:27:58]} {[%emt
00:07:36]} Ra3 {[%clk 00:55:51]} {[%emt 00:01:20]} 24. Rd2 {[%clk 00:27:15]}
{[%emt 00:01:14]} b6 {[%clk 00:52:38]} {[%emt 00:03:43]} 25. Bc2 {[%clk
00:22:44]} {[%emt 00:05:01]} a5 {[%clk 00:43:34]} {[%emt 00:09:35]} 26. bxa5
{[%clk 00:22:56]} {[%emt 00:00:17]} bxa5 {[%clk 00:43:45]} {[%emt 00:00:19]} 27.
Bb3 {[%clk 00:22:42]} {[%emt 00:00:44]} a4 {[%clk 00:43:27]} {[%emt 00:00:49]}
28. Bc4 {[%clk 00:23:09]} {[%emt 00:00:03]} Kg7 {[%clk 00:43:15]} {[%emt
00:00:42]} 29. Kf1 {[%clk 00:23:23]} {[%emt 00:00:16]} Rc8 {[%clk 00:39:01]}
{[%emt 00:04:44]} 30. Rdc2 {[%clk 00:21:56]} {[%emt 00:01:58]} Rxc4 {[%clk
00:37:31]} {[%emt 00:02:01]} 31. Rxc4 {[%clk 00:22:13]} {[%emt 00:00:12]} Rxa2
{[%clk 00:38:00]} {[%emt 00:00:01]} 32. R1c2 {[%clk 00:22:07]} {[%emt
00:00:36]} Rxc2 {[%clk 00:38:26]} {[%emt 00:00:04]} 33. Rxc2 {[%clk 00:22:24]}
{[%emt 00:00:13]} a3 {[%clk 00:38:55]} 34. Ra2 {[%clk 00:20:48]} {[%emt
00:02:06]} Bb2 {[%clk 00:39:19]} {[%emt 00:00:05]} 35. Ke2 {[%clk 00:20:27]}
{[%emt 00:00:51]} f5 {[%clk 00:38:22]} {[%emt 00:01:28]} 36. Ke3 {[%clk
00:20:28]} {[%emt 00:00:28]} Kf6 {[%clk 00:38:41]} {[%emt 00:00:11]} 37. h3
{[%clk 00:19:57]} {[%emt 00:01:01]} Ke6 {[%clk 00:38:16]} {[%emt 00:00:55]} 38.
g4 {[%clk 00:19:51]} {[%emt 00:00:36]} Kd5 {[%clk 00:38:08]} {[%emt 00:00:38]}
39. gxf5 {[%clk 00:17:55]} {[%emt 00:02:26]} Kc4 {[%clk 00:38:27]} {[%emt
00:00:11]} 40. Ke4 {[%clk 00:18:05]} {[%emt 00:00:20]} Kb3 {[%clk 00:38:46]}
{[%emt 00:00:11]} 41. Rxa3+ {[%clk 00:18:22]} {[%emt 00:00:13]} Kxa3 {[%clk
00:39:15]} {[%emt 00:00:02]} 42. f3 {[%clk 00:18:18]} {[%emt 00:00:34]} f6
{[%clk 00:38:55]} {[%emt 00:00:50]} 43. Kd5 {[%clk 00:18:40]} {[%emt 00:00:08]}
Kb3 {[%clk 00:39:24]} {[%emt 00:00:01]} 44. Ke6 {[%clk 00:18:54]} {[%emt
00:00:16]} Kc4 {[%clk 00:39:51]} {[%emt 00:00:03]} 45. h4 {[%clk 00:19:08]}
{[%emt 00:00:16]} Kd3 {[%clk 00:37:12]} {[%emt 00:03:09]} 46. h5 {[%clk
00:18:58]} {[%emt 00:00:40]} e4 {[%clk 00:36:58]} {[%emt 00:00:45]} 47. fxe4
{[%clk 00:19:09]} {[%emt 00:00:19]} Kxe4 {[%clk 00:37:27]} 48. h6 {[%clk
00:19:05]} {[%emt 00:00:35]} Kf4 {[%clk 00:37:51]} {[%emt 00:00:06]} 0-1

[Event "FINAL CAMPEONATO ABSOLUTO DE AJEDREZ CHILE 2018"]
[Site "CENTRO CULTURAL LO PRADO, Chile"]
[Date "2018.02.26"]
[Round "4.3"]
[White "VERGARA JOFRE, Felipe Andres"]
[Black "GARCIA CARDENAS, Pablo"]
[Result "0-1"]
[TimeControl "90 minutos mas 30 segundos de incremento por movida"]
[WhiteTitle "FM"]
[BlackTitle "IM"]
[WhiteElo "2270"]
[BlackElo "2454"]

1. d4 {[%clk 01:26:57]} {[%emt 00:04:02]} Nf6 {[%clk 01:30:52]} {[%emt
00:00:08]} 2. Bf4 {[%clk 01:27:24]} {[%emt 00:00:04]} d5 {[%clk 01:27:50]}
{[%emt 00:03:32]} 3. e3 {[%clk 01:27:28]} {[%emt 00:00:26]} e6 {[%clk
01:21:07]} {[%emt 00:07:13]} 4. Nf3 {[%clk 01:27:45]} {[%emt 00:00:13]} c5
{[%clk 01:21:32]} {[%emt 00:00:05]} 5. Nbd2 {[%clk 01:26:30]} {[%emt 00:01:46]}
Qb6 {[%clk 01:18:05]} {[%emt 00:03:57]} 6. dxc5 {[%clk 01:24:13]} {[%emt
00:02:48]} Qxb2 {[%clk 01:17:08]} {[%emt 00:01:27]} 7. Rb1 {[%clk 01:20:52]}
{[%emt 00:03:51]} Qc3 {[%clk 01:11:36]} {[%emt 00:06:02]} 8. Bb5+ {[%clk
01:17:05]} {[%emt 00:04:18]} Nbd7 {[%clk 01:04:28]} {[%emt 00:07:37]} 9. O-O
{[%clk 01:01:00]} {[%emt 00:16:35]} Bxc5 {[%clk 00:47:40]} {[%emt 00:17:19]} 10.
Be5 {[%clk 00:52:20]} {[%emt 00:09:10]} Qa3 {[%clk 00:43:02]} {[%emt 00:05:08]}
11. Bxd7+ {[%clk 00:47:58]} {[%emt 00:04:52]} Bxd7 {[%clk 00:42:21]} {[%emt
00:01:11]} 12. Rxb7 {[%clk 00:47:52]} {[%emt 00:00:37]} Qa6 {[%clk 00:37:09]}
{[%emt 00:05:42]} 13. Rb1 {[%clk 00:33:28]} {[%emt 00:14:54]} O-O {[%clk
00:31:12]} {[%emt 00:06:27]} 14. c4 {[%clk 00:25:49]} {[%emt 00:08:10]} Ba4
{[%clk 00:24:59]} {[%emt 00:06:43]} 15. Qe2 {[%clk 00:20:31]} {[%emt 00:05:48]}
Nd7 {[%clk 00:18:16]} {[%emt 00:07:12]} 16. e4 {[%clk 00:05:37]} {[%emt
00:15:24]} dxc4 {[%clk 00:11:25]} {[%emt 00:07:22]} 17. Qxc4 {[%clk 00:03:53]}
{[%emt 00:02:14]} Qxc4 {[%clk 00:11:48]} {[%emt 00:00:06]} 18. Nxc4 {[%clk
00:04:22]} {[%emt 00:00:01]} Bc2 {[%clk 00:12:08]} {[%emt 00:00:10]} 19. Rbc1
{[%clk 00:02:07]} {[%emt 00:02:45]} Bxe4 {[%clk 00:12:31]} {[%emt 00:00:06]} 20.
Rfd1 {[%clk 00:00:58]} {[%emt 00:01:40]} Bd5 {[%clk 00:09:46]} {[%emt
00:03:15]} 21. a4 {[%clk 00:00:35]} {[%emt 00:00:53]} Nb6 {[%clk 00:08:17]}
{[%emt 00:01:59]} 22. Nxb6 {[%clk 00:00:44]} {[%emt 00:00:20]} axb6 {[%clk
00:08:42]} {[%emt 00:00:05]} 23. Bd4 {[%clk 00:01:04]} {[%emt 00:00:10]} Rfc8
{[%clk 00:07:05]} {[%emt 00:02:07]} 24. Bxc5 {[%clk 00:00:34]} {[%emt
00:01:01]} bxc5 {[%clk 00:07:33]} {[%emt 00:00:01]} 25. Ra1 {[%clk 00:00:51]}
{[%emt 00:00:12]} Bb3 {[%clk 00:07:41]} {[%emt 00:00:23]} 26. Rdc1 {[%clk
00:00:59]} {[%emt 00:00:23]} Bxa4 {[%clk 00:06:02]} {[%emt 00:02:09]} 27. Kf1
{[%clk 00:00:55]} {[%emt 00:00:34]} Bb5+ {[%clk 00:05:24]} {[%emt 00:01:08]} 28.
Ke1 {[%clk 00:01:24]} {[%emt 00:00:01]} Rxa1 {[%clk 00:05:47]} {[%emt
00:00:06]} 29. Rxa1 {[%clk 00:01:53]} Bc6 {[%clk 00:06:11]} {[%emt 00:00:06]}
30. Kd2 {[%clk 00:00:59]} {[%emt 00:01:24]} Bxf3 {[%clk 00:06:24]} {[%emt
00:00:17]} 31. gxf3 {[%clk 00:01:28]} g6 {[%clk 00:06:38]} {[%emt 00:00:16]} 32.
Kc3 {[%clk 00:01:24]} {[%emt 00:00:34]} Rd8 {[%clk 00:06:49]} {[%emt 00:00:19]}
33. Ra5 {[%clk 00:00:39]} {[%emt 00:01:16]} Rd5 {[%clk 00:07:14]} {[%emt
00:00:05]} 34. f4 {[%clk 00:00:32]} {[%emt 00:00:37]} Rd4 {[%clk 00:07:22]}
{[%emt 00:00:22]} 35. Rxc5 {[%clk 00:00:53]} {[%emt 00:00:09]} Rxf4 {[%clk
00:07:49]} {[%emt 00:00:02]} 0-1

[Event "FINAL CAMPEONATO ABSOLUTO DE AJEDREZ CHILE 2018"]
[Site "CENTRO CULTURAL LO PRADO, Chile"]
[Date "2018.02.26"]
[Round "4.4"]
[White "SALINAS HERRERA, Pablo Patrici"]
[Black "DIAZ VILLAGRAN, Robert"]
[Result "1-0"]
[TimeControl "90 minutos mas 30 segundos de incremento por movida"]
[WhiteTitle "IM"]
[BlackTitle "FM"]
[WhiteElo "2453"]
[BlackElo "2317"]

1. Nf3 {[%clk 01:25:31]} {[%emt 00:05:28]} Nf6 {[%clk 01:27:57]} {[%emt
00:03:04]} 2. c4 {[%clk 01:25:35]} {[%emt 00:00:26]} d6 {[%clk 01:26:03]}
{[%emt 00:02:24]} 3. d4 {[%clk 01:26:00]} {[%emt 00:00:05]} Nbd7 {[%clk
01:26:18]} {[%emt 00:00:15]} 4. Nc3 {[%clk 01:26:24]} {[%emt 00:00:06]} e5
{[%clk 01:26:43]} {[%emt 00:00:05]} 5. e4 {[%clk 01:26:50]} {[%emt 00:00:03]}
Be7 {[%clk 01:26:06]} {[%emt 00:01:07]} 6. Be2 {[%clk 01:27:14]} {[%emt
00:00:06]} O-O {[%clk 01:25:38]} {[%emt 00:00:57]} 7. O-O {[%clk 01:27:40]}
{[%emt 00:00:04]} c6 {[%clk 01:22:37]} {[%emt 00:03:32]} 8. Qc2 {[%clk
01:28:05]} {[%emt 00:00:05]} Qc7 {[%clk 01:20:20]} {[%emt 00:02:48]} 9. Rd1
{[%clk 01:28:30]} {[%emt 00:00:05]} Re8 {[%clk 01:18:58]} {[%emt 00:01:52]} 10.
h3 {[%clk 01:28:06]} {[%emt 00:00:54]} Nf8 {[%clk 01:11:41]} {[%emt 00:07:47]}
11. Be3 {[%clk 01:22:36]} {[%emt 00:05:59]} Ne6 {[%clk 01:04:09]} {[%emt
00:08:01]} 12. d5 {[%clk 01:19:35]} {[%emt 00:03:32]} Nf4 {[%clk 00:54:40]}
{[%emt 00:09:59]} 13. Bf1 {[%clk 01:04:59]} {[%emt 00:15:05]} Bf8 {[%clk
00:50:35]} {[%emt 00:04:34]} 14. b4 {[%clk 00:51:30]} {[%emt 00:13:59]} Nd7
{[%clk 00:35:06]} {[%emt 00:15:59]} 15. Qd2 {[%clk 00:47:45]} {[%emt 00:04:15]}
a5 {[%clk 00:29:17]} {[%emt 00:06:19]} 16. a3 {[%clk 00:46:34]} {[%emt
00:01:42]} axb4 {[%clk 00:29:13]} {[%emt 00:00:35]} 17. axb4 {[%clk 00:46:58]}
{[%emt 00:00:05]} Rxa1 {[%clk 00:29:39]} {[%emt 00:00:04]} 18. Rxa1 {[%clk
00:47:21]} {[%emt 00:00:06]} Ng6 {[%clk 00:29:25]} {[%emt 00:00:44]} 19. Ra7
{[%clk 00:46:18]} {[%emt 00:01:33]} c5 {[%clk 00:24:21]} {[%emt 00:05:34]} 20.
Nb5 {[%clk 00:46:02]} {[%emt 00:00:46]} Qb6 {[%clk 00:24:39]} {[%emt 00:00:12]}
21. Qc2 {[%clk 00:36:40]} {[%emt 00:09:52]} Nb8 {[%clk 00:22:59]} {[%emt
00:02:10]} 22. bxc5 {[%clk 00:25:29]} {[%emt 00:11:41]} dxc5 {[%clk 00:23:19]}
{[%emt 00:00:10]} 23. Ra3 {[%clk 00:25:55]} {[%emt 00:00:05]} h6 {[%clk
00:21:00]} {[%emt 00:02:49]} 24. Ne1 {[%clk 00:26:01]} {[%emt 00:00:24]} Na6
{[%clk 00:20:57]} {[%emt 00:00:33]} 25. Nd3 {[%clk 00:25:56]} {[%emt 00:00:34]}
Nh4 {[%clk 00:20:13]} {[%emt 00:01:14]} 26. Ne1 {[%clk 00:19:47]} {[%emt
00:06:40]} Nb4 {[%clk 00:15:53]} {[%emt 00:04:49]} 27. Qb1 {[%clk 00:19:33]}
{[%emt 00:00:43]} Qf6 {[%clk 00:15:25]} {[%emt 00:00:58]} 28. Bd2 {[%clk
00:19:10]} {[%emt 00:00:54]} Na6 {[%clk 00:14:42]} {[%emt 00:01:13]} 29. g3
{[%clk 00:18:47]} {[%emt 00:00:52]} Ng6 {[%clk 00:14:55]} {[%emt 00:00:17]} 30.
Qa1 {[%clk 00:18:45]} {[%emt 00:00:32]} Bd7 {[%clk 00:14:33]} {[%emt 00:00:52]}
31. Bg2 {[%clk 00:18:09]} {[%emt 00:01:05]} Qd8 {[%clk 00:13:21]} {[%emt
00:01:42]} 32. Qb1 {[%clk 00:16:27]} {[%emt 00:02:12]} Nb4 {[%clk 00:11:00]}
{[%emt 00:02:52]} 33. Nc3 {[%clk 00:16:52]} {[%emt 00:00:05]} f6 {[%clk
00:11:06]} {[%emt 00:00:24]} 34. Na2 {[%clk 00:17:07]} {[%emt 00:00:14]} Nxa2
{[%clk 00:11:24]} {[%emt 00:00:12]} 35. Rxa2 {[%clk 00:17:33]} {[%emt
00:00:05]} Bc8 {[%clk 00:10:58]} {[%emt 00:00:56]} 36. Nd3 {[%clk 00:17:23]}
{[%emt 00:00:40]} f5 {[%clk 00:09:59]} {[%emt 00:01:30]} 37. Qb5 {[%clk
00:11:12]} {[%emt 00:06:40]} f4 {[%clk 00:06:49]} {[%emt 00:03:40]} 38. Nxc5
{[%clk 00:11:23]} {[%emt 00:00:18]} f3 {[%clk 00:07:07]} {[%emt 00:00:12]} 39.
Bxf3 {[%clk 00:11:07]} {[%emt 00:00:46]} Bxh3 {[%clk 00:07:30]} {[%emt
00:00:07]} 40. Ne6 {[%clk 00:09:59]} {[%emt 00:01:39]} Rxe6 {[%clk 00:06:10]}
{[%emt 00:01:49]} 41. dxe6 {[%clk 00:09:59]} {[%emt 00:00:30]} Qd3 {[%clk
00:06:39]} {[%emt 00:00:01]} 42. Be3 {[%clk 00:09:30]} {[%emt 00:00:59]} Qf1+
{[%clk 00:05:31]} {[%emt 00:01:39]} 43. Kh2 {[%clk 00:09:56]} {[%emt 00:00:04]}
Bxe6 {[%clk 00:05:56]} {[%emt 00:00:05]} 44. Bg2 {[%clk 00:08:22]} {[%emt
00:02:03]} Qxc4 {[%clk 00:05:32]} {[%emt 00:00:55]} 45. Rb2 {[%clk 00:08:48]}
{[%emt 00:00:04]} Qc3 {[%clk 00:02:30]} {[%emt 00:03:32]} 46. Qxb7 {[%clk
00:09:13]} {[%emt 00:00:05]} Kh7 {[%clk 00:02:56]} {[%emt 00:00:04]} 47. Rb6
{[%clk 00:09:20]} {[%emt 00:00:23]} Qc8 {[%clk 00:02:19]} {[%emt 00:01:08]} 48.
Qxc8 {[%clk 00:09:10]} {[%emt 00:00:40]} Bxc8 {[%clk 00:02:48]} 49. Bh3 {[%clk
00:09:32]} {[%emt 00:00:08]} Bxh3 {[%clk 00:03:10]} {[%emt 00:00:08]} 50. Kxh3
{[%clk 00:09:58]} {[%emt 00:00:04]} Be7 {[%clk 00:03:28]} {[%emt 00:00:12]} 51.
Kg4 {[%clk 00:10:08]} {[%emt 00:00:19]} Bf6 {[%clk 00:03:26]} {[%emt 00:00:33]}
52. Bc5 {[%clk 00:10:34]} {[%emt 00:00:04]} 1-0